bitfinex/quotes_ETHUSD_20241003
["timestamp","ask_amount","ask_price","bid_price","bid_amount"]
[1727960631263,0.008,2359.6,2359.4,4.8696571]
[1727960631463,0.008,2359.8,2359.3,4.23844]
[1727960631804,0.008,2359.8,2359.4,4.23826]
[1727960631805,4.24568,2359.8,2359.4,4.23826]
[1727960632099,4.58819385,2359.7,2359.3,4.23846]
[1727960632298,0.008,2359.4,2359.1,4.23882]
[1727960633504,0.008,2359.4,2359.1,4.23876]
[1727960633714,0.008,2359.4,2359.2,4.23865]
[1727960634372,0.008,2359.4,2359.1,4.2389]
[1727960634705,0.008,2359.4,2359.2,4.23865]
[1727960635115,0.008,2359.4,2359.1,4.2389]
[1727960635264,0.008,2359.4,2359.1,8.47772]
[1727960635498,0.008,2359.4,2359.1,4.23882]
[1727960635709,0.008,2359.2,2359.1,4.23882]
[1727960637441,0.008,2359.3,2359.1,4.23882]
[1727960637606,0.008,2359.3,2359.1,8.47756]
[1727960638203,0.008,2359.3,2359.2,4.23872]
[1727960638538,0.008,2360.1,2359.9,4.23746]
[1727960638752,0.008,2360.1,2359.8,0.801]
[1727960638753,0.008,2360.1,2359.8,5.03856]
[1727960639045,0.008,2360.1,2359.9,4.23746]
[1727960639244,0.008,2360.1,2359.5,5.05922]
[1727960639547,0.008,2360.1,2359.8,4.23756]
[1727960640397,0.6974,2360.0,2359.6,4.23789]
[1727960640753,4.93479,2360.0,2359.4,4.23823]
[1727960640906,0.008,2359.8,2359.4,4.23823]
[1727960641237,0.008,2359.6,2359.4,8.47651]
[1727960641447,0.008,2359.6,2359.4,4.23823]
[1727960641603,0.6974,2359.5,2359.3,4.2385]
[1727960641799,0.008,2359.4,2358.6,4.23974]
[1727960642046,0.008,2359.4,2358.8,4.23938]
[1727960642256,0.008,2359.0,2358.8,4.23935]
[1727960642742,4.2471,2359.0,2358.4,4.24001]
[1727960642994,0.008,2358.7,2358.5,4.23985]
[1727960643127,0.008,2358.7,2358.6,4.23972]
[1727960643320,0.008,2358.7,2358.5,4.23985]
[1727960643321,0.6974,2358.6,2358.3,4.24025]
[1727960643524,0.6974,2358.6,2358.2,4.24043]
[1727960643525,0.008,2358.4,2358.2,4.24043]
[1727960643749,0.008,2358.4,2357.9,0.7782]
[1727960644059,0.008,2358.4,2358.2,4.24052]
[1727960644223,0.008,2358.4,2358.3,4.24034]
[1727960645448,0.7054,2358.6,2358.5,4.23998]
[1727960646170,0.6974,2358.6,2358.5,4.23998]
[1727960646692,4.23894,2359.1,2358.5,4.23998]
[1727960646892,1.04766934,2359.0,2358.7,4.23961]
[1727960647099,0.008,2358.8,2358.5,4.23983]
[1727960647385,0.008,2358.8,2358.5,8.47969]
[1727960647941,0.008,2358.6,2358.5,8.47969]
[1727960649978,0.008,2358.7,2358.5,8.47969]
[1727960650183,0.008,2358.7,2358.5,4.23983]
[1727960651067,0.008,2358.7,2358.5,8.47972]
[1727960651484,0.008,2358.7,2358.6,4.2398]
[1727960652699,0.008,2358.7,2358.5,4.23983]
[1727960653851,0.008,2358.7,2358.3,4.32506811]
[1727960654167,0.008,2358.7,2358.4,4.24001]
[1727960654366,0.008,2358.7,2358.2,4.24038]
[1727960654367,0.6974,2358.6,2358.2,4.24038]
[1727960654568,0.008,2358.3,2358.2,4.24038]
[1727960656168,0.008,2358.3,2358.1,4.2406]
[1727960656368,0.008,2358.3,2358.0,4.24073]
[1727960656793,0.6974,2358.2,2357.8,4.2411]
[1727960657010,0.008,2358.0,2357.8,4.24115]
[1727960657225,0.008,2358.0,2357.9,4.24097]
[1727960658319,0.008,2358.0,2357.7,4.24132]
[1727960658585,4.24155,2357.7,2357.1,4.24239]
[1727960658789,0.7054,2357.4,2357.0,4.24266]
[1727960659077,0.008,2357.2,2357.0,4.24266]
[1727960659276,0.008,2357.2,2356.9,4.24283]
[1727960659600,0.008,2357.0,2356.8,4.24291]
[1727960659808,0.008,2357.2,2356.9,4.24285]
[1727960660007,0.008,2357.0,2356.8,4.24291]
[1727960660377,0.008,2357.0,2356.7,4.24322]
[1727960660678,0.008,2356.8,2356.7,4.24322]
[1727960662019,0.008,2356.8,2356.1,0.7655]
[1727960662020,0.7054,2356.8,2356.1,0.7655]
[1727960662222,0.6974,2356.4,2355.9,4.24457]
[1727960662379,4.24394,2356.3,2355.8,4.24466]
[1727960662717,0.6974,2356.4,2355.9,4.24457]
[1727960662920,0.008,2356.1,2355.9,4.24456]
[1727960663071,4.94121,2356.4,2355.9,4.24456]
[1727960663272,0.6974,2356.4,2355.9,8.48912]
[1727960663604,0.6974,2356.4,2355.9,4.24456]
[1727960664120,4.94117,2356.4,2355.9,4.24456]
[1727960664711,4.94117,2356.4,2355.8,4.24483]
[1727960664712,4.24397,2356.3,2355.8,4.24483]
[1727960664913,0.008,2355.9,2355.8,4.24483]
[1727960665225,0.6974,2355.8,2355.4,4.24555]
[1727960665375,0.008,2355.6,2355.4,4.24541]
[1727960665627,0.008,2355.6,2355.4,4.669951]
[1727960666162,0.008,2355.6,2355.4,4.24541]
[1727960666381,4.24539,2355.5,2355.0,4.24617]
[1727960666556,0.7054,2355.3,2354.9,4.2464]
[1727960666863,0.008,2355.1,2355.0,4.24628]
[1727960667095,0.008,2355.1,2354.9,4.24645]
[1727960667368,0.008,2355.1,2355.0,4.24628]
[1727960667863,0.008,2355.1,2355.0,5.095553]
[1727960668026,0.6974,2355.6,2355.2,4.24583]
[1727960668428,0.008,2355.4,2355.2,4.24581]
[1727960668858,0.008,2355.4,2355.2,8.49163]
[1727960669039,0.008,2355.4,2355.3,4.24574]
[1727960669243,0.008,2355.4,2355.3,5.17980456]
[1727960669449,0.008,2355.4,2355.3,5.094895]
[1727960669671,0.7054,2355.8,2355.5,4.24521]
[1727960669987,0.008,2355.6,2355.5,4.24521]
[1727960670488,0.7054,2355.8,2355.5,4.24521]
[1727960670637,0.008,2355.8,2355.5,0.5094365]
[1727960670842,12.33179,2356.1,2355.6,4.2452]
[1727960671036,0.008,2355.7,2355.6,4.2452]
[1727960671385,0.008,2355.8,2355.6,4.2452]
[1727960671534,0.008,2356.1,2355.8,4.24468]
[1727960671742,0.008,2355.9,2355.8,4.24468]
[1727960672048,0.008,2356.1,2355.8,4.24468]
[1727960672248,7.39,2356.3,2355.8,4.24468]
[1727960672249,7.39,2356.3,2355.9,4.24452]
[1727960672573,4.94119,2356.4,2355.9,4.24452]
[1727960672777,0.6974,2356.4,2355.9,5.14098637]
[1727960673040,0.6974,2356.4,2356.0,4.24447]
[1727960673183,0.008,2356.3,2355.9,4.24452]
[1727960673341,0.008,2356.1,2355.9,4.24452]
[1727960675152,0.008,2356.1,2355.9,8.4891]
[1727960675351,0.008,2356.3,2356.0,4.24448]
[1727960675590,0.6974,2356.4,2356.0,4.24448]
[1727960675591,0.008,2356.1,2356.0,4.24448]
[1727960675751,0.008,2356.1,2355.9,4.24452]
[1727960676251,0.008,2356.1,2356.0,4.24448]
[1727960676452,0.008,2356.1,2355.9,4.24452]
[1727960677098,0.008,2356.1,2356.0,4.24448]
[1727960677304,0.008,2356.3,2356.1,4.24428]
[1727960677519,0.008,2356.5,2356.3,4.2439]
[1727960677792,4.2425,2357.1,2356.7,4.2432]
[1727960677992,0.008,2356.9,2356.7,4.2432]
[1727960678200,0.008,2357.2,2357.0,4.24266]
[1727960678403,4.24167,2357.6,2357.3,4.24196]
[1727960678404,0.008,2357.6,2357.3,4.24196]
[1727960678564,0.008,2357.6,2356.9,5.05174]
[1727960678889,0.008,2357.6,2357.4,4.24194]
[1727960679262,0.008,2357.6,2357.5,7.300962]
[1727960679487,0.6974,2358.0,2357.6,4.2415]
[1727960679488,0.008,2358.0,2357.6,4.2415]
[1727960679991,0.008,2357.8,2357.7,4.24142]
[1727960680590,0.008,2358.0,2357.8,4.24117]
[1727960680993,4.24107,2357.9,2357.4,4.24195]
[1727960681176,0.6974,2358.3,2357.1,4.24236]
[1727960681177,0.6974,2357.7,2357.1,4.24236]
[1727960681381,0.008,2357.2,2356.9,8.01733]
[1727960681564,0.008,2357.2,2356.9,8.01728]
[1727960682213,4.2418,2357.5,2357.0,4.2426]
[1727960682417,0.008,2357.2,2357.0,4.2426]
[1727960682565,0.008,2357.2,2357.1,4.2425]
[1727960683511,4.24088,2358.0,2357.3,4.24214]
[1727960683512,0.008,2357.4,2357.3,4.24214]
[1727960683815,0.008,2357.8,2357.6,4.2416]
[1727960684113,4.24161,2357.6,2357.0,4.24256]
[1727960684339,0.008,2357.3,2357.0,4.24256]
[1727960684820,0.008,2357.3,2357.1,4.2424]
[1727960685039,0.6974,2357.5,2356.9,3.0]
[1727960685040,0.008,2357.5,2356.9,3.0]
[1727960685187,0.008,2357.5,2357.3,4.24202]
[1727960685885,0.008,2357.5,2357.3,4.24201]
[1727960686092,0.008,2357.7,2357.5,4.24174]
[1727960686406,0.7054,2357.8,2357.5,4.24174]
[1727960687285,0.008,2357.8,2357.5,4.24174]
[1727960687699,0.008,2357.8,2357.6,4.24151]
[1727960687902,0.008,2357.8,2357.4,0.0848272]
[1727960687903,4.24895,2358.0,2357.4,8.48371]
[1727960688220,4.24895,2358.0,2357.6,4.24159]
[1727960688418,0.008,2357.8,2357.6,8.48308]
[1727960688591,0.008,2357.8,2357.6,4.24149]
[1727960689222,0.008,2357.8,2357.7,4.24142]
[1727960689430,0.008,2358.0,2357.7,4.3262377]
[1727960689734,0.008,2358.0,2357.7,4.24142]
[1727960690028,0.008,2357.8,2357.5,4.2417]
[1727960690235,0.008,2357.8,2357.5,4.24167]
[1727960690927,4.24931,2357.8,2357.4,7.24193]
[1727960691083,4.24108,2357.9,2357.5,4.24177]
[1727960691487,4.24086,2358.1,2357.5,4.24177]
[1727960691734,4.24097,2358.0,2357.5,4.24177]
[1727960691934,4.24097,2358.0,2357.5,4.24169]
[1727960692237,0.008,2357.7,2357.6,4.2416]
[1727960692532,0.6974,2358.3,2357.6,4.2416]
[1727960692533,0.008,2358.0,2357.7,4.24141]
[1727960692893,0.008,2357.8,2357.7,4.24141]
[1727960694345,0.008,2357.8,2357.2,0.8068]
[1727960694520,4.94673,2357.8,2357.3,4.24206]
[1727960694836,4.94673,2357.8,2357.3,8.4841]
[1727960694837,0.008,2357.4,2357.3,8.4841]
[1727960696029,0.6974,2357.8,2357.6,4.24152]
[1727960696186,0.008,2357.7,2357.6,4.24152]
[1727960696388,0.7054,2357.8,2357.6,4.24152]
[1727960696587,0.008,2357.8,2357.7,4.24142]
[1727960696886,0.008,2357.8,2357.6,4.24158]
[1727960698724,0.008,2357.8,2357.7,4.24142]
[1727960699313,0.008,2357.8,2357.6,4.24158]
[1727960699527,0.008,2357.8,2357.6,4.24147]
[1727960699837,0.008,2357.8,2357.7,4.24142]
[1727960700193,0.008,2358.0,2357.7,0.08482509]
[1727960700395,0.008,2358.2,2357.9,4.24106]
[1727960700594,0.008,2358.4,2358.0,4.32562636]
[1727960700836,4.24055,2358.2,2357.7,0.8303]
[1727960701000,4.24055,2358.2,2357.6,4.24146]
[1727960701001,4.2408,2358.1,2357.6,4.24146]
[1727960701331,4.2408,2358.1,2357.5,4.24161]
[1727960701332,0.7054,2358.0,2357.5,4.24174]
[1727960701539,0.008,2357.7,2357.6,4.24152]
[1727960702223,0.008,2357.7,2357.6,5.15664588]
[1727960702424,0.008,2358.0,2357.9,4.24106]
[1727960702631,0.008,2358.5,2358.1,5.071]
[1727960702832,8.0874,2358.7,2358.4,7.24016]
[1727960702833,0.008,2358.7,2358.4,7.24016]
[1727960703205,0.008,2359.3,2359.0,4.23903]
[1727960703371,0.008,2359.3,2359.2,4.23872]
[1727960703518,0.008,2359.8,2359.7,4.23782]
[1727960703715,0.008,2360.1,2360.0,4.23728]
[1727960703917,0.44308203,2360.6,2360.2,4.23677]
[1727960704121,0.44308203,2360.6,2360.3,4.23659]
[1727960704424,4.23577,2360.9,2360.3,4.23665]
[1727960704753,0.008,2360.5,2360.3,4.23665]
[1727960704923,4.24387,2360.8,2360.3,4.23665]
[1727960705256,0.855953,2360.8,2360.3,4.23664]
[1727960705413,0.008,2360.8,2360.7,4.23603]
[1727960705773,0.008,2361.3,2360.6,5.02014]
[1727960705916,4.24351,2361.0,2360.5,3.0]
[1727960706249,0.008,2361.0,2360.5,7.23637]
[1727960706450,4.2435,2361.0,2360.5,3.0]
[1727960706651,5.091379,2361.0,2360.5,3.0]
[1727960706863,5.091379,2361.0,2360.1,3.0]
[1727960706864,4.23588,2360.8,2360.1,3.0]
[1727960707060,4.24404,2360.7,2360.1,3.0]
[1727960709450,0.008,2359.9,2359.4,4.31747153]
[1727960709812,4.23628,2360.6,2359.6,4.238]
[1727960709813,0.008,2359.7,2359.6,4.238]
[1727960710053,0.008,2360.2,2359.9,3.0]
[1727960710220,0.008,2360.4,2360.0,4.32190499]
[1727960710978,0.6974,2360.6,2360.0,4.32190499]
[1727960710979,0.7054,2360.6,2360.1,4.23708]
[1727960711183,0.6974,2360.6,2360.2,0.08471781]
[1727960711382,0.008,2360.7,2360.2,0.08471781]
[1727960711690,0.008,2360.7,2360.0,3.0]
[1727960711691,4.24419,2360.7,2360.0,3.0]
[1727960711890,4.23622,2360.6,2360.0,8.04571418]
[1727960712200,0.008,2360.4,2360.0,3.80846418]
[1727960712498,0.008,2360.7,2360.0,3.80846418]
[1727960712654,4.9332,2360.9,2360.0,0.08473218]
[1727960712851,4.9332,2360.9,2360.3,4.23658]
[1727960712852,0.6974,2360.9,2360.3,4.23658]
[1727960713165,4.2435,2361.0,2360.4,4.32117637]
[1727960713370,0.008,2361.0,2360.5,4.2363]
[1727960713696,0.008,2361.0,2360.3,0.8161]
[1727960713697,0.008,2361.0,2360.6,0.08471103]
[1727960713915,0.44298481,2361.1,2360.8,4.23582]
[1727960714056,4.23528,2361.2,2360.9,0.423582]
[1727960714252,4.23531,2361.1,2360.7,3.0]
[1727960714471,4.23478,2361.4,2360.5,3.0]
[1727960714694,8.47921,2361.0,2360.5,3.0]
[1727960714853,4.23613,2360.7,2360.3,3.8161]
[1727960715059,4.23608,2360.7,2360.3,3.805291]
[1727960715259,4.23629,2360.6,2360.1,4.23707]
[1727960715456,4.24429,2360.6,2360.1,4.23707]
[1727960715660,8.48064,2360.6,2360.1,4.23707]
[1727960715983,0.008,2360.6,2359.9,0.7555]
[1727960716201,4.23689,2360.3,2359.8,4.23753]
[1727960716503,4.23689,2360.3,2359.8,5.24722204]
[1727960716795,0.6974,2360.2,2359.6,0.7656]
[1727960716968,4.23812,2359.6,2359.2,0.7635]
[1727960717169,4.23812,2359.6,2358.8,0.7635]
[1727960717170,4.23862,2359.3,2358.8,0.7635]
[1727960717363,4.23862,2359.3,2358.6,4.23966]
[1727960717364,4.23891,2359.1,2358.6,4.23966]
[1727960717692,0.008,2359.3,2358.9,4.23913]
[1727960717854,0.008,2359.3,2359.2,4.23872]
[1727960718052,0.008,2359.3,2359.2,5.10328519]
[1727960718315,0.008,2360.0,2359.4,4.23822]
[1727960718500,4.93441,2360.2,2359.6,4.23789]
[1727960718708,4.23777,2359.8,2359.3,3.0]
[1727960718909,4.24616,2359.6,2359.2,3.0]
[1727960719075,4.23832,2359.5,2359.0,3.0]
[1727960719399,0.008,2359.6,2359.3,4.23845]
[1727960719710,4.23779,2359.8,2359.1,0.04425893]
[1727960719711,4.24573,2359.8,2359.2,4.23871]
[1727960720009,4.24573,2359.8,2359.3,4.32328164]
[1727960720010,0.008,2359.8,2359.3,4.32328164]
[1727960720216,0.008,2359.8,2359.3,4.32314164]
[1727960720378,0.008,2359.8,2359.4,4.23833]
[1727960720578,8.48352,2359.8,2359.3,4.23839]
[1727960720805,4.24574,2359.8,2359.3,5.17173149]
[1727960721014,0.008,2359.8,2359.4,0.08475921]
[1727960721185,4.23762,2359.9,2359.3,4.23844]
[1727960721516,4.24536,2360.0,2359.5,4.23806]
[1727960721890,4.24536,2360.0,2359.4,4.23819]
[1727960721891,4.23768,2359.8,2359.2,4.23861]
[1727960722198,4.23768,2359.8,2359.3,4.662401]
[1727960722518,4.23768,2359.8,2359.3,4.662301]
[1727960722732,4.23837,2359.4,2359.0,3.0]
[1727960723014,4.23837,2359.4,2358.7,4.23949]
[1727960723015,0.008,2359.2,2358.8,4.23936]
[1727960723673,0.008,2359.2,2358.9,4.23924]
[1727960723977,0.008,2359.4,2359.3,4.23854]
[1727960724176,7.39,2359.8,2359.5,4.23813]
[1727960724374,0.008,2359.9,2359.5,4.23813]
[1727960724610,4.24548,2359.9,2359.5,4.23813]
[1727960725192,4.24548,2359.9,2359.4,4.30368469]
[1727960725614,4.24548,2359.9,2359.1,4.23876]
[1727960725615,4.23805,2359.6,2359.1,4.23876]
[1727960725845,4.23861,2359.3,2358.8,4.23942]
[1727960726145,0.008,2359.3,2358.9,4.31387438]
[1727960726294,4.94359,2359.5,2359.1,4.23889]
[1727960726948,4.94359,2359.5,2358.9,4.23922]
[1727960727154,0.008,2359.3,2359.2,4.23871]
[1727960727299,0.008,2359.5,2359.2,0.85384765]
[1727960727497,0.008,2359.5,2359.2,4.23872]
[1727960727729,0.008,2359.5,2359.4,4.23836]
[1727960728034,4.94288,2359.9,2359.4,4.23836]
[1727960728192,0.008,2359.6,2359.4,8.47663]
[1727960728391,4.93495,2359.9,2359.5,0.847663]
[1727960728392,4.94295,2359.9,2359.5,0.847663]
[1727960728629,4.23765,2359.8,2359.4,4.23827]
[1727960728827,0.7054,2359.9,2359.5,4.23817]
[1727960728998,0.008,2360.1,2359.7,4.23773]
[1727960729210,4.24521,2360.1,2359.5,4.23804]
[1727960729540,0.008,2360.1,2359.6,4.23797]
[1727960729714,4.24511,2360.1,2359.7,4.23781]
[1727960729916,4.24511,2360.1,2359.6,4.661767]
[1727960730136,0.008,2359.9,2359.2,5.04987]
[1727960730321,0.008,2359.9,2359.5,4.23818]
[1727960730322,4.24555,2359.9,2359.5,4.23818]
[1727960731044,4.23767,2359.8,2359.3,4.2384]
[1727960731249,4.23767,2359.8,2359.2,0.8113]
[1727960731250,4.24555,2359.9,2359.5,4.23813]
[1727960731407,4.24512,2360.1,2359.6,4.32272895]
[1727960731609,4.23767,2359.8,2359.3,4.23852]
[1727960731839,4.23767,2359.8,2359.3,0.928844]
[1727960731840,4.23801,2359.6,2359.3,0.928844]
[1727960732043,4.23818,2359.5,2359.4,0.10694463]
[1727960732410,4.23839,2359.4,2358.8,4.23931]
[1727960732645,4.24657,2359.3,2358.8,4.23931]
[1727960732830,4.23873,2359.2,2358.8,4.23931]
[1727960733118,4.23839,2359.4,2358.9,4.23913]
[1727960733119,0.008,2359.1,2358.9,4.23913]
[1727960733316,0.008,2359.1,2359.0,5.086924]
[1727960733567,0.008,2359.1,2359.0,5.12334038]
[1727960733708,0.6974,2359.7,2359.0,5.12334038]
[1727960733709,0.008,2359.3,2359.1,4.23883]
[1727960734053,4.24601,2359.6,2359.0,0.847844]
[1727960734360,0.008,2359.3,2359.1,4.23875]
[1727960734514,0.008,2359.3,2359.1,5.1713144]
[1727960734708,0.008,2359.3,2359.2,4.23872]
[1727960734915,0.008,2359.3,2359.2,4.27689002]
[1727960735425,0.008,2359.3,2359.2,4.32347807]
[1727960735633,0.6974,2359.7,2359.4,4.23826]
[1727960735845,0.6974,2359.7,2359.6,4.238]
[1727960736045,0.008,2359.8,2359.4,4.23826]
[1727960736246,4.23785,2359.7,2359.3,4.23852]
[1727960736433,4.238,2359.6,2359.2,4.2387]
[1727960736751,0.7054,2359.5,2358.8,0.7503]
[1727960736954,12.06997358,2360.3,2359.0,4.23906]
[1727960736955,0.008,2359.3,2359.0,4.23906]
[1727960737181,0.6974,2359.8,2358.9,0.07815431]
[1727960737182,0.008,2359.5,2359.2,4.23864]
[1727960737366,0.008,2359.5,2359.1,4.23881]
[1727960737687,0.008,2359.5,2359.0,4.23894]
[1727960737688,0.008,2359.8,2359.6,4.23799]
[1727960737978,0.008,2359.8,2359.7,0.10694463]
[1727960738543,4.24564,2359.8,2359.4,4.23834]
[1727960738740,4.24564,2359.8,2359.7,0.10694463]
[1727960739053,0.008,2359.8,2359.5,4.23806]
[1727960739251,4.24564,2359.8,2359.7,0.10694463]
[1727960739472,0.7054,2359.6,2359.0,3.0]
[1727960739782,4.23856,2359.3,2358.9,4.23915]
[1727960739941,4.24664,2359.3,2358.7,4.23951]
[1727960740146,0.008,2359.0,2358.7,4.23951]
[1727960740362,0.008,2359.0,2358.8,4.23932]
[1727960740686,0.008,2359.0,2358.8,8.47869]
[1727960740840,0.008,2359.0,2358.8,4.23932]
[1727960741552,0.008,2359.0,2358.7,7.72049558]
[1727960741760,4.9445,2359.0,2358.5,4.23993]
[1727960741963,0.008,2358.8,2358.2,4.2404]
[1727960742295,0.008,2358.6,2358.5,4.23998]
[1727960742441,0.008,2358.8,2358.6,4.23969]
[1727960743451,0.008,2358.8,2358.4,4.24005]
[1727960743651,0.008,2358.5,2358.4,4.24005]
[1727960743855,0.008,2358.5,2358.4,5.17287469]
[1727960744043,0.008,2358.5,2358.4,8.881278]
[1727960744243,0.008,2359.1,2358.7,4.23962]
[1727960744444,4.94396,2359.3,2358.8,4.23927]
[1727960744662,0.008,2359.1,2359.0,4.23908]
[1727960744973,0.008,2359.3,2359.2,4.23872]
[1727960745291,0.008,2359.6,2359.5,4.23818]
[1727960745598,4.23719,2360.1,2359.4,4.23832]
[1727960745599,4.23732,2360.0,2359.4,4.23828]
[1727960745755,4.730792,2360.0,2359.4,4.23828]
[1727960745957,4.23773,2359.8,2359.3,4.2385]
[1727960746182,0.6974,2359.6,2359.2,4.2387]
[1727960746381,0.6974,2359.6,2359.4,4.23826]
[1727960746683,0.7054,2359.6,2359.4,4.23826]
[1727960747097,0.7054,2359.6,2359.3,4.23846]
[1727960747686,0.7054,2359.6,2359.3,4.23839]
[1727960747992,0.7054,2359.6,2359.4,4.23828]
[1727960748592,0.008,2359.6,2359.4,4.23828]
[1727960748746,0.008,2359.8,2359.4,4.23828]
[1727960748949,0.008,2359.8,2359.5,0.08476332]
[1727960749290,0.008,2359.9,2359.8,4.23753]
[1727960749451,0.008,2360.1,2359.7,4.23772]
[1727960749663,0.008,2359.9,2359.8,4.23764]
[1727960749876,0.008,2360.1,2359.9,4.23739]
[1727960750303,0.54652836,2360.1,2359.5,4.23811]
[1727960750464,0.008,2359.7,2359.4,4.23828]
[1727960750660,0.008,2359.7,2359.3,5.02703]
[1727960750905,0.008,2359.5,2359.3,0.7886]
[1727960751263,0.008,2359.5,2359.3,5.02714]
[1727960751608,0.008,2359.5,2359.4,4.23836]
[1727960751759,4.23801,2359.6,2359.3,0.7886]
[1727960752106,0.008,2359.5,2359.3,0.7886]
[1727960752817,0.008,2359.5,2359.4,0.10368753]
[1727960752973,0.008,2359.5,2359.4,4.34204753]
[1727960753174,0.008,2359.5,2359.4,0.10368753]
[1727960753682,0.008,2359.5,2359.4,4.34204753]
[1727960753882,0.008,2359.5,2359.4,1.34060628]
[1727960754100,0.008,2359.5,2359.4,0.10368753]
[1727960754280,4.24618,2359.5,2359.4,0.10368753]
[1727960754484,0.008,2359.5,2359.4,0.10368753]
[1727960754873,4.24618,2359.5,2359.4,0.10368753]
[1727960755213,4.59661292,2359.5,2358.4,0.848028]
[1727960755424,4.59661292,2359.5,2358.4,4.24014]
[1727960755425,0.008,2358.8,2358.4,4.24014]
[1727960755573,0.008,2358.6,2358.2,4.24042]
[1727960755885,0.008,2358.6,2358.4,4.24013]
[1727960756080,0.008,2358.6,2358.3,4.24031]
[1727960756672,0.008,2358.6,2358.3,4.24024]
[1727960757677,4.24019,2358.4,2357.9,4.24093]
[1727960758026,4.24881,2358.1,2357.7,4.24141]
[1727960758317,0.008,2357.8,2357.4,2.5382]
[1727960758539,4.24178,2357.5,2357.4,2.5382]
[1727960758828,5.01636504,2357.5,2357.4,2.5382]
[1727960759192,4.665958,2357.5,2357.4,2.5382]
[1727960760400,5.01622281,2357.5,2357.4,2.5382]
[1727960760600,5.01622281,2357.5,2357.4,2.62519843]
[1727960760800,5.02422281,2357.5,2357.4,2.62519843]
[1727960761303,4.60004481,2357.5,2357.4,2.5382]
[1727960761537,4.24978,2357.5,2357.4,2.5382]
[1727960761902,7.79978,2357.5,2357.4,2.62519843]
[1727960762241,7.59978957,2357.5,2357.4,2.5382]
[1727960762440,9.53178636,2357.5,2357.4,2.10194687]
[1727960762629,10.12680479,2357.5,2357.4,0.94122529]
[1727960762828,10.12680479,2357.5,2356.0,4.24435]
[1727960763039,8.48743,2356.5,2355.9,4.24456]
[1727960763381,4.24467,2355.9,2355.2,4.2458]
[1727960763546,4.25306,2355.7,2355.2,4.24575]
[1727960763841,0.008,2355.4,2355.1,4.24607]
[1727960764154,0.008,2355.4,2355.3,4.24574]
[1727960764304,7.24398,2356.3,2355.0,4.24613]
[1727960764305,0.008,2355.5,2355.0,4.24613]
[1727960764628,0.433322,2355.5,2355.0,8.49231]
[1727960764825,4.24522,2355.6,2355.0,8.49231]
[1727960764826,0.008,2355.2,2355.1,4.2461]
[1727960765252,0.008,2355.5,2355.3,4.24563]
[1727960765535,0.008,2355.5,2355.2,4.24589]
[1727960765536,0.008,2355.5,2355.4,4.24556]
[1727960765744,0.008,2355.5,2355.3,4.24574]
[1727960765925,0.008,2355.5,2355.4,4.24556]
[1727960766313,0.008,2355.5,2355.2,4.24589]
[1727960766642,0.008,2355.5,2355.2,4.2458]
[1727960766826,0.008,2355.5,2355.2,4.67887158]
[1727960767244,0.008,2355.5,2355.4,4.24556]
[1727960767421,0.008,2355.5,2355.4,5.06026]
[1727960767922,1.0,2355.9,2355.7,0.8275]
[1727960768159,5.24466,2355.9,2355.7,0.8275]
[1727960768324,4.769306,2355.8,2355.7,0.8275]
[1727960768664,4.769306,2355.8,2355.0,4.24614]
[1727960768665,4.24525,2355.6,2355.0,4.24614]
[1727960768822,4.2452,2355.7,2355.2,4.24589]
[1727960769027,4.2452,2355.7,2355.1,0.8275]
[1727960769028,0.008,2355.4,2355.1,0.8275]
[1727960769562,0.008,2355.4,2355.2,4.24583]
[1727960769938,0.008,2355.4,2355.3,0.8239]
[1727960770136,1.0,2355.9,2355.3,0.8239]
[1727960770137,0.008,2355.6,2355.3,0.8239]
[1727960770323,0.008,2355.8,2355.3,5.06953]
[1727960770522,0.008,2355.8,2355.4,4.24555]
[1727960770823,0.008,2355.8,2355.4,4.24541]
[1727960771024,0.008,2355.8,2355.3,0.8239]
[1727960771436,0.008,2355.8,2355.4,4.24555]
[1727960771966,0.53328,2355.8,2355.3,0.8239]
[1727960772120,4.24549,2355.5,2355.3,0.8239]
[1727960772324,0.008,2355.4,2355.3,0.8239]
[1727960777439,0.008,2355.4,2355.0,0.8257]
[1727960777440,4.25358,2355.4,2355.0,0.8257]
[1727960777653,0.008,2355.1,2355.0,0.8257]
[1727960779373,4.24558,2355.4,2355.0,0.8257]
[1727960779374,0.008,2355.4,2355.0,5.07198]
[1727960779583,0.85709,2355.4,2355.0,5.07198]
[1727960779884,5.10267,2355.4,2355.0,0.8257]
[1727960780179,4.24586,2355.3,2355.0,0.8257]
[1727960780350,0.008,2355.1,2355.0,0.8257]
[1727960780968,4.2541,2355.1,2355.0,0.8257]
[1727960781340,0.008,2355.1,2355.0,0.8257]
[1727960783182,0.008,2355.1,2355.0,0.90623513]
[1727960783828,0.008,2355.1,2355.0,0.08053513]
[1727960784033,4.679644,2355.1,2354.7,0.7932]
[1727960784469,4.24637,2355.0,2354.8,0.08107263]